fUSD/lending_fUSD_20250213
["ID","MTS","AMOUNT","RATE_DAILY","PERIOD"]
[353012541,1739485932714,-500.0,0.00014767,2]
[353012542,1739485932723,-500.0,0.00014767,2]
[353012543,1739485932732,-500.0,0.00014767,2]
[353012544,1739485932742,-500.0,0.00014767,2]
[353012545,1739485932751,-500.0,0.00014767,2]
[353012546,1739485932761,-763.9,0.00014767,2]
[353012547,1739485932771,-500.0,0.00014767,2]
[353012548,1739485932780,-500.0,0.00014767,2]
[353012549,1739485932790,-500.0,0.00014767,2]
[353012550,1739485932799,-500.0,0.00014767,2]
[353012551,1739485932809,-500.0,0.00014767,2]
[353012552,1739485932819,-500.0,0.00014767,2]
[353012553,1739485932828,-500.0,0.00014767,2]
[353012554,1739485932838,-696.46,0.00014767,2]
[353012555,1739485932848,-500.0,0.00014767,2]
[353012556,1739485932858,-500.0,0.00014767,2]
[353012557,1739485932868,-500.0,0.00014767,2]
[353012558,1739485932878,-500.0,0.00014767,2]
[353012559,1739485932888,-500.0,0.00014767,2]
[353012560,1739485932898,-500.0,0.00014767,2]
[353012561,1739485932907,-500.0,0.00014767,2]
[353012562,1739485932916,-835.17,0.00014767,2]
[353012563,1739485932928,-500.0,0.00014767,2]
[353012564,1739485932938,-500.0,0.00014767,2]
[353012565,1739485932948,-500.0,0.00014767,2]
[353012566,1739485932958,-500.0,0.00014767,2]
[353012567,1739485932968,-692.97,0.00014767,2]
[353012568,1739485932978,-500.0,0.00014767,2]
[353012569,1739485932987,-500.0,0.00014767,2]
[353012570,1739485932997,-500.0,0.00014767,2]
[353012571,1739485933007,-500.0,0.00014767,2]
[353012572,1739485933017,-500.0,0.00014767,2]
[353012573,1739485933027,-500.0,0.00014767,2]
[353012574,1739485933042,-566.32,0.00014767,2]
[353012575,1739485933052,-500.0,0.00014767,2]
[353012576,1739485933062,-857.95,0.00014767,2]
[353012577,1739485933073,-2021.1,0.00014767,2]
[353012578,1739485933083,-702.16,0.00014767,2]
[353012579,1739485933093,-683.82,0.00014767,2]
[353012580,1739485933103,-1015.7,0.00014767,2]
[353012581,1739485933116,-713.38,0.00014767,2]
[353012582,1739485933128,-500.0,0.00014767,2]
[353012583,1739485933138,-1424.92,0.00014767,2]
[353012584,1739485933149,-500.0,0.00014767,2]
[353012585,1739485933159,-500.0,0.00014767,2]
[353012586,1739485933169,-811.86,0.00014767,2]
[353012587,1739485933180,-988.11,0.00014767,2]
[353012588,1739485933189,-1906.79,0.00014767,2]
[353012589,1739485933199,-1427.42,0.00014767,2]
[353012590,1739485933209,-524.63,0.00014767,2]
[353012591,1739485933219,-500.0,0.00014767,2]
[353012592,1739485933229,-881.54,0.00014767,2]
[353012593,1739485933239,-865.9,0.00014767,2]
[353012594,1739485933249,-1372.61,0.00014767,2]
[353012595,1739485933259,-758.33,0.00014767,2]
[353012596,1739485933269,-1840.97,0.00014767,2]
[353012597,1739485933279,-1636.34,0.00014767,2]
[353012598,1739485933289,-1035.24,0.00014767,2]
[353012599,1739485933299,-1782.82,0.00014767,2]
[353012600,1739485933309,-557.25,0.00014767,2]
[353012601,1739485933319,-687.87,0.00014767,2]
[353012602,1739485933329,-888.74,0.00014767,2]
[353012603,1739485933338,-500.0,0.00014767,2]
[353012604,1739485933350,-1131.23,0.00014767,2]
[353012605,1739485933360,-976.11,0.00014767,2]
[353012606,1739485933371,-548.09,0.00014767,2]
[353012607,1739485933381,-1065.2,0.00014767,2]
[353012608,1739485933391,-500.0,0.00014767,2]
[353012609,1739485933401,-1519.15,0.00014767,2]
[353012610,1739485933411,-825.94,0.00014767,2]
[353012611,1739485933422,-717.12,0.00014767,2]
[353012612,1739485933432,-718.5,0.00014767,2]
[353012613,1739485933442,-500.0,0.00014767,2]
[353012614,1739485933452,-1464.62,0.00014767,2]
[353012615,1739485933462,-1779.83,0.00014767,2]
[353012616,1739485933471,-551.0,0.00014767,2]
[353012617,1739485933482,-1813.74,0.00014767,2]
[353012618,1739485933491,-558.37,0.00014767,2]
[353012619,1739485933501,-807.26,0.00014767,2]
[353012620,1739485933511,-1306.72,0.00014767,2]
[353012621,1739485933520,-1123.76,0.00014767,2]
[353012622,1739485933530,-500.0,0.00014767,2]
[353012623,1739485933540,-844.9,0.00014767,2]
[353012624,1739485933550,-2257.68,0.00014767,2]
[353012625,1739485933559,-831.33,0.00014767,2]
[353012626,1739485933568,-923.9,0.00014767,2]
[353012627,1739485933578,-500.0,0.00014767,2]
[353012628,1739485933588,-500.0,0.00014767,2]
[353012629,1739485933598,-500.0,0.00014767,2]
[353012630,1739485933607,-807.0,0.00014767,2]
[353012631,1739485933617,-897.69,0.00014767,2]
[353012632,1739485933628,-1270.71,0.00014767,2]
[353012633,1739485933638,-853.17,0.00014767,2]
[353012634,1739485933648,-840.31,0.00014767,2]
[353012635,1739485933657,-500.0,0.00014767,2]
[353012636,1739485933667,-500.0,0.00014767,2]
[353012637,1739485933678,-500.0,0.00014767,2]
[353012638,1739485933688,-500.0,0.00014767,2]
[353012639,1739485933698,-500.0,0.00014767,2]
[353012640,1739485933707,-500.0,0.00014767,2]
[353012641,1739485933717,-1705.94,0.00014767,2]
[353012642,1739485933727,-500.0,0.00014767,2]
[353012643,1739485933736,-876.71,0.00014767,2]
[353012644,1739485933746,-885.91,0.00014767,2]
[353012645,1739485933756,-500.0,0.00014767,2]
[353012646,1739485933767,-2161.09,0.00014767,2]
[353012647,1739485933777,-500.0,0.00014767,2]
[353012648,1739485933787,-3040.0,0.00014767,2]
[353012649,1739485933797,-1238.79,0.00014767,2]
[353012650,1739485933807,-1105.8,0.00014767,2]
[353012651,1739485933817,-2265.19,0.00014767,2]
[353012652,1739485933827,-1322.86,0.00014767,2]
[353012653,1739485933837,-906.34,0.00014767,2]
[353012654,1739485933847,-523.6,0.00014767,2]
[353012655,1739485933857,-646.18,0.00014767,2]
[353012656,1739485933867,-893.53,0.00014767,2]
[353012657,1739485933877,-970.55,0.00014767,2]
[353012658,1739485933888,-702.31,0.00014767,2]
[353012659,1739485933900,-553.1,0.00014767,2]
[353012660,1739485933909,-2482.92,0.00014767,2]
[353012661,1739485933919,-500.0,0.00014767,2]
[353012662,1739485933932,-858.18,0.00014767,2]
[353012663,1739485933941,-669.76,0.00014767,2]
[353012664,1739485933951,-710.97,0.00014767,2]
[353012665,1739485933961,-1892.5,0.00014767,2]
[353012666,1739485933971,-739.26,0.00014767,2]
[353012667,1739485933980,-1559.26,0.00014767,2]
[353012668,1739485933990,-1326.07,0.00014767,2]
[353012669,1739485934000,-602.38,0.00014767,2]
[353012670,1739485934011,-835.99,0.00014767,2]
[353012671,1739485934021,-1789.82,0.00014767,2]
[353012672,1739485934034,-500.0,0.00014767,2]
[353012673,1739485934043,-1318.31,0.00014767,2]
[353012674,1739485934053,-551.86,0.00014767,2]
[353012675,1739485934063,-864.67,0.00014767,2]
[353012676,1739485934075,-500.0,0.00014767,2]
[353012677,1739485934084,-1141.82,0.00014767,2]
[353012678,1739485934094,-1994.16,0.00014767,2]
[353012679,1739485934106,-812.11,0.00014767,2]
[353012680,1739485934116,-500.0,0.00014767,2]
[353012681,1739485934126,-1079.19,0.00014767,2]
[353012682,1739485934136,-859.06,0.00014767,2]
[353012683,1739485934146,-1941.15,0.00014767,2]
[353012684,1739485934156,-2409.32,0.00014767,2]
[353012685,1739485934166,-592.63,0.00014767,2]
[353012686,1739485934178,-900.38,0.00014767,2]
[353012687,1739485934188,-1010.42,0.00014767,2]
[353012688,1739485934198,-1741.64,0.00014767,2]
[353012689,1739485934208,-1201.88,0.00014767,2]
[353012690,1739485934218,-730.65,0.00014767,2]
[353012691,1739485934228,-2964.55,0.00014767,2]
[353012692,1739485934238,-645.62,0.00014767,2]
[353012693,1739485934248,-1693.27,0.00014767,2]
[353012694,1739485934258,-765.27,0.00014767,2]
[353012695,1739485934268,-1023.18,0.00014767,2]
[353012696,1739485934278,-1983.35,0.00014767,2]
[353012697,1739485934288,-1199.21,0.00014767,2]
[353012698,1739485934298,-1991.14,0.00014767,2]
[353012699,1739485934308,-533.09,0.00014767,2]
[353012700,1739485934318,-500.0,0.00014767,2]
[353012701,1739485934328,-4281.75,0.00014767,2]
[353012702,1739485934339,-2700.69,0.00014767,2]
[353012703,1739485934350,-1072.56,0.00014767,2]
[353012704,1739485934360,-2181.51,0.00014767,2]
[353012705,1739485934370,-2105.12,0.00014767,2]
[353012706,1739485934380,-2362.29,0.00014767,2]
[353012707,1739485934391,-797.65,0.00014767,2]
[353012708,1739485934401,-1372.43,0.00014767,2]
[353012709,1739485934411,-500.0,0.00014767,2]
[353012710,1739485934421,-2270.27,0.00014767,2]
[353012711,1739485934431,-701.26,0.00014767,2]
[353012712,1739485934441,-500.0,0.00014767,2]
[353012713,1739485934450,-1635.6,0.00014767,2]
[353012714,1739485934459,-1210.46,0.00014767,2]
[353012715,1739485934469,-1551.99,0.00014767,2]
[353012716,1739485934479,-2766.93,0.00014767,2]
[353012717,1739485934488,-4033.58,0.00014767,2]
[353012718,1739485934498,-2765.04,0.00014767,2]
[353012719,1739485934509,-660.75,0.00014767,2]
[353012720,1739485934519,-2103.7,0.00014767,2]
[353012721,1739485934530,-924.48,0.00014767,2]
[353012722,1739485934540,-794.33,0.00014767,2]
[353012723,1739485934550,-1140.21,0.00014767,2]
[353012724,1739485934560,-1374.92,0.00014767,2]
[353012725,1739485934571,-500.0,0.00014767,2]
[353012726,1739485934580,-1394.91,0.00014767,2]
[353012727,1739485934590,-2230.12,0.00014767,2]
[353012728,1739485934599,-500.0,0.00014767,2]
[353012729,1739485934609,-878.31,0.00014767,2]
[353012730,1739485934619,-1071.07,0.00014767,2]
[353012731,1739485934630,-3342.84,0.00014767,2]
[353012732,1739485934639,-683.58,0.00014767,2]
[353012733,1739485934649,-1308.38,0.00014767,2]
[353012734,1739485934659,-3531.08,0.00014767,2]
[353012735,1739485934669,-1653.81,0.00014767,2]
[353012736,1739485934679,-553.67,0.00014767,2]
[353012737,1739485934689,-988.77,0.00014767,2]
[353012738,1739485934699,-488.23369021,0.00014767,2]
[353012739,1739485934708,-2226.29,0.00014767,2]
[353012740,1739485934718,-969.77,0.00014767,2]
[353012741,1739485934727,-1807.21,0.00014767,2]
[353012742,1739485934737,-500.0,0.00014767,2]
[353012743,1739485934747,-3314.33,0.00014767,2]
[353012744,1739485934757,-1796.12,0.00014767,2]
[353012745,1739485934767,-3189.0,0.00014767,2]
[353012746,1739485934778,-803.11,0.00014767,2]
[353012747,1739485934787,-607.85,0.00014767,2]
[353012748,1739485934797,-761.91,0.00014767,2]
[353012749,1739485934808,-621.21,0.00014767,2]
[353012750,1739485934820,-1972.85,0.00014767,2]
[353012751,1739485934830,-523.93,0.00014767,2]
[353012752,1739485934840,-3990.94,0.00014767,2]
[353012753,1739485934850,-719.42,0.00014767,2]
[353012754,1739485934860,-749.77,0.00014767,2]
[353012755,1739485934871,-500.0,0.00014767,2]
[353012756,1739485934884,-1753.67,0.00014767,2]
[353012757,1739485934893,-2497.17,0.00014767,2]
[353012758,1739485934903,-500.0,0.00014767,2]
[353012759,1739485934912,-1325.27,0.00014767,2]
[353012760,1739485934925,-3120.71,0.00014767,2]
[353012761,1739485934935,-511.69,0.00014767,2]
[353012762,1739485934945,-3912.39,0.00014767,2]
[353012763,1739485934955,-1203.12,0.00014767,2]
[353012764,1739485934964,-635.38,0.00014767,2]
[353012765,1739485934974,-500.0,0.00014767,2]
[353012766,1739485935061,-1628.89,0.00014767,2]
[353012767,1739485935071,-1174.26,0.00014767,2]
[353012768,1739485935081,-5014.48,0.00014767,2]
[353012769,1739485935090,-591.53,0.00014767,2]
[353012770,1739485935100,-2834.89,0.00014767,2]
[353012771,1739485935110,-1129.98,0.00014767,2]
[353012772,1739485935121,-4012.08,0.00014767,2]
[353012773,1739485935132,-1877.06,0.00014767,2]
[353012774,1739485935142,-2305.18,0.00014767,2]
[353012775,1739485935151,-3400.07,0.00014767,2]
[353012776,1739485935161,-1278.06,0.00014767,2]
[353012777,1739485935173,-2677.19,0.00014767,2]
[353012778,1739485935183,-2091.53,0.00014767,2]
[353012779,1739485935192,-10601.94,0.00014767,2]
[353012780,1739485935203,-6319.86,0.00014767,2]
[353012781,1739485935212,-1914.19,0.00014767,2]
[353012782,1739485935222,-2222.28,0.00014767,2]
[353012783,1739485935231,-1244.36,0.00014767,2]
[353012784,1739485935241,-2434.73,0.00014767,2]
[353012785,1739485935250,-1301.75,0.00014767,2]
[353012786,1739485935260,-3378.69,0.00014767,2]
[353012787,1739485935270,-1073.98,0.00014767,2]
[353012788,1739485935280,-500.0,0.00014767,2]
[353012789,1739485935290,-500.0,0.00014767,2]
[353012790,1739485935300,-1003.25,0.00014767,2]
[353012791,1739485935309,-1894.84,0.00014767,2]
[353012792,1739485935319,-3213.97,0.00014767,2]
[353012793,1739485935328,-1618.51,0.00014767,2]
[353012794,1739485935339,-3027.83,0.00014767,2]
[353012795,1739485935349,-1463.57,0.00014767,2]
[353012796,1739485935359,-551.57,0.00014767,2]
[353012797,1739485935369,-1866.04,0.00014767,2]
[353012798,1739485935380,-3405.09,0.00014767,2]
[353012799,1739485935390,-3794.0,0.00014767,2]
[353012800,1739485935400,-3558.25,0.00014767,2]
[353012801,1739485935410,-1199.38,0.00014767,2]
[353012802,1739485935420,-5141.78,0.00014767,2]
[353012803,1739485935430,-5036.58,0.00014767,2]
[353012804,1739485935441,-972.02,0.00014767,2]
[353012805,1739485935450,-1457.37,0.00014767,2]
[353012806,1739485935459,-4943.34,0.00014767,2]
[353012807,1739485935468,-1646.26,0.00014767,2]
[353012808,1739485935478,-1023.76,0.00014767,2]
[353012809,1739485935488,-973.76,0.00014767,2]
[353012810,1739485935498,-1078.92,0.00014767,2]
[353012811,1739485935508,-3488.7,0.00014767,2]
[353012812,1739485935518,-9947.08,0.00014767,2]
[353012813,1739485935528,-1167.35,0.00014767,2]
[353012814,1739485935537,-1925.44,0.00014767,2]
[353012815,1739485935547,-3374.31,0.00014767,2]
[353012816,1739485935556,-3871.01,0.00014767,2]
[353012817,1739485935566,-3262.34,0.00014767,2]
[353012818,1739485935576,-3751.7,0.00014767,2]
[353012819,1739485935586,-2216.47,0.00014767,2]
[353012820,1739485935596,-500.0,0.00014767,2]
[353012821,1739485935606,-500.0,0.00014767,2]
[353012822,1739485935616,-2198.57,0.00014767,2]
[353012823,1739485935626,-1272.94,0.00014767,2]
[353012824,1739485935635,-3047.23,0.00014767,2]
[353012825,1739485935645,-4282.13,0.00014767,2]
[353012826,1739485935655,-1579.29,0.00014767,2]
[353012827,1739485935665,-2262.09,0.00014767,2]
[353012828,1739485935677,-2034.1,0.00014767,2]
[353012829,1739485935687,-4796.16,0.00014767,2]
[353012830,1739485935696,-621.58,0.00014767,2]
[353012831,1739485935707,-4188.27,0.00014767,2]
[353012832,1739485935716,-2900.35,0.00014767,2]
[353012833,1739485935726,-5302.96,0.00014767,2]
[353012834,1739485935736,-3352.12,0.00014767,2]
[353012835,1739485935746,-525.01,0.00014767,2]
[353012836,1739485935757,-2517.29,0.00014767,2]
[353012837,1739485935767,-3510.5,0.00014767,2]
[353012838,1739485935777,-1911.76,0.00014767,2]
[353012839,1739485935787,-3186.25,0.00014767,2]
[353012840,1739485935798,-1411.53,0.00014767,2]
[353012841,1739485935809,-5245.34,0.00014767,2]
[353012842,1739485935820,-498.08751416,0.00014767,2]
[353012843,1739485935830,-4040.71,0.00014767,2]
[353012844,1739485935840,-2434.4,0.00014767,2]
[353012845,1739485935849,-797.43,0.00014767,2]
[353012846,1739485935859,-3997.95,0.00014767,2]
[353012847,1739485935870,-3418.06,0.00014767,2]
[353012848,1739485935880,-3613.39,0.00014767,2]
[353012849,1739485935890,-566.64,0.00014767,2]
[353012850,1739485935899,-8838.73,0.00014767,2]
[353012851,1739485935910,-624.99,0.00014767,2]
[353012852,1739485935920,-720.74,0.00014767,2]
[353012853,1739485935931,-3533.94,0.00014767,2]
[353012854,1739485935941,-3776.32,0.00014767,2]
[353012855,1739485935952,-522.13,0.00014767,2]
[353012856,1739485935961,-4171.69,0.00014767,2]
[353012857,1739485935972,-2767.11,0.00014767,2]
[353012858,1739485935982,-500.0,0.00014767,2]
[353012859,1739485935992,-1300.63,0.00014767,2]
[353012860,1739485936002,-3523.18,0.00014767,2]
[353012861,1739485936012,-4629.45,0.00014767,2]
[353012862,1739485936022,-2317.93,0.00014767,2]
[353012863,1739485936036,-542.74,0.00014767,2]
[353012864,1739485936047,-6501.79,0.00014767,2]
[353012865,1739485936058,-649.96,0.00014767,2]
[353012866,1739485936068,-2852.77,0.00014767,2]
[353012867,1739485936078,-4468.57,0.00014767,2]
[353012868,1739485936088,-773.78,0.00014767,2]
[353012869,1739485936098,-724.47,0.00014767,2]
[353012870,1739485936108,-4071.43,0.00014767,2]
[353012871,1739485936119,-2513.38,0.00014767,2]
[353012872,1739485936129,-3113.41,0.00014767,2]
[353012873,1739485936139,-3680.29,0.00014767,2]
[353012874,1739485936150,-964.12,0.00014767,2]
[353012875,1739485936159,-500.0,0.00014767,2]
[353012876,1739485936169,-1523.71,0.00014767,2]
[353012877,1739485936181,-525.45,0.00014767,2]
[353012878,1739485936191,-741.53,0.00014767,2]
[353012879,1739485936200,-2768.98,0.00014767,2]
[353012880,1739485936210,-1470.77,0.00014767,2]
[353012881,1739485936221,-3441.38,0.00014767,2]
[353012882,1739485936231,-4132.51,0.00014767,2]
[353012883,1739485936241,-1712.88,0.00014767,2]
[353012884,1739485936252,-4938.55,0.00014767,2]
[353012885,1739485936261,-2124.68,0.00014767,2]
[353012886,1739485936271,-1789.26,0.00014767,2]
[353012887,1739485936281,-1226.02,0.00014767,2]
[353012888,1739485936291,-1451.96,0.00014767,2]
[353012889,1739485936301,-824.05,0.00014767,2]
[353012890,1739485936311,-3558.23,0.00014767,2]
[353012891,1739485936321,-4167.53,0.00014767,2]
[353012892,1739485936331,-880.79,0.00014767,2]
[353012893,1739485936340,-1838.56,0.00014767,2]
[353012894,1739485936350,-1936.97,0.00014767,2]
[353012895,1739485936360,-2962.2,0.00014767,2]
[353012896,1739485936371,-598.78,0.00014767,2]
[353012897,1739485936382,-299.0,0.0001479,2]
[353012898,1739485936393,-2265.71,0.00014794,3]
[353012899,1739485936404,-156204.150986,0.000148,2]
[353012900,1739485936414,-1124.476697,0.00014849,2]
[353012901,1739485936425,-1030.770305,0.00014849,2]
[353012902,1739485936434,-1369.077968,0.00014849,2]
[353012903,1739485936443,-500.0,0.00014849,2]
[353012904,1739485936453,-500.0,0.00014849,2]
[353012905,1739485936464,-781.27,0.00014849,2]
[353012906,1739485936474,-640.12,0.00014849,2]
[353012907,1739485936484,-571.73,0.00014849,2]
[353012908,1739485936494,-767.83,0.00014849,2]
[353012909,1739485936504,-517.58,0.00014849,2]
[353012910,1739485936513,-748.33,0.00014849,2]
[353012911,1739485936523,-1019.36,0.00014849,2]
[353012912,1739485936533,-500.0,0.00014849,2]
[353012913,1739485936543,-536.11,0.00014849,2]
[353012914,1739485936552,-853.88,0.00014849,2]
[353012915,1739485936563,-500.0,0.00014849,2]
[353012916,1739485936572,-1237.75,0.00014849,2]
[353012917,1739485936583,-500.0,0.00014849,2]
[353012918,1739485936592,-823.6,0.00014849,2]
[353012919,1739485936602,-500.0,0.00014849,2]
[353012920,1739485936611,-588.86,0.00014849,2]
[353012921,1739485936621,-583.03,0.00014849,2]
[353012922,1739485936631,-839.01,0.00014849,2]
[353012923,1739485936641,-632.18,0.00014849,2]
[353012924,1739485936652,-1100.34,0.00014849,2]
[353012925,1739485936663,-500.0,0.00014849,2]
[353012926,1739485936674,-907.89,0.00014849,2]
[353012927,1739485936684,-500.0,0.00014849,2]
[353012928,1739485936693,-791.76,0.00014849,2]
[353012929,1739485936702,-500.0,0.00014849,2]
[353012930,1739485936711,-1002.52,0.00014849,2]
[353012931,1739485936720,-673.2,0.00014849,2]
[353012932,1739485936730,-864.99,0.00014849,2]
[353012933,1739485936739,-556.42,0.00014849,2]
[353012934,1739485936748,-606.37,0.00014849,2]
[353012935,1739485936757,-500.0,0.00014849,2]
[353012936,1739485936767,-500.0,0.00014849,2]
[353012937,1739485936777,-542.4,0.00014849,2]
[353012938,1739485936787,-500.0,0.00014849,2]
[353012939,1739485936796,-606.89,0.00014849,2]
[353012940,1739485936806,-551.03,0.00014849,2]
[353012941,1739485936815,-500.0,0.00014849,2]
[353012942,1739485936824,-571.58,0.00014849,2]
[353012943,1739485936835,-507.69,0.00014849,2]
[353012944,1739485936845,-500.0,0.00014849,2]
[353012945,1739485936855,-500.0,0.00014849,2]
[353012946,1739485936865,-306.9377985,0.00014849,2]
[353012947,1739485936875,-500.0,0.00014849,2]
[353012948,1739485936885,-500.0,0.00014849,2]
[353012949,1739485936895,-500.0,0.00014849,2]
[353012950,1739485936906,-500.0,0.00014849,2]
[353012951,1739485936917,-2208.67,0.00014849,2]
[353012952,1739485936928,-543.67,0.00014849,2]
[353012953,1739485936938,-653.16,0.00014849,2]
[353012954,1739485936947,-823.62,0.00014849,2]
[353012955,1739485936957,-638.54,0.00014849,2]
[353012956,1739485936966,-1041.6,0.00014849,2]
[353012957,1739485936975,-500.0,0.00014849,2]
[353012958,1739485936985,-2539.19,0.00014849,2]
[353012959,1739485936994,-500.0,0.00014849,2]
[353012960,1739485937004,-3052.42,0.00014849,2]
[353012961,1739485937014,-514.61,0.00014849,2]
[353012962,1739485937026,-1525.33,0.00014849,2]
[353012963,1739485937039,-867.43,0.00014849,2]
[353012964,1739485937050,-500.0,0.00014849,2]
[353012965,1739485937060,-1400.14,0.00014849,2]
[353012966,1739485937070,-917.77,0.00014849,2]
[353012967,1739485937081,-1241.27,0.00014849,2]
[353012968,1739485937092,-991.55,0.00014849,2]
[353012969,1739485937103,-566.52,0.00014849,2]
[353012970,1739485937114,-500.0,0.00014849,2]
[353012971,1739485937124,-500.0,0.00014849,2]
[353012972,1739485937134,-500.0,0.00014849,2]
[353012973,1739485937144,-500.0,0.00014849,2]
[353012974,1739485937155,-633.2,0.00014849,2]
[353012975,1739485937164,-717.52,0.00014849,2]
[353012976,1739485937174,-689.5,0.00014849,2]
[353012977,1739485937184,-965.58,0.00014849,2]
[353012978,1739485937194,-756.27,0.00014849,2]
[353012979,1739485937205,-687.68,0.00014849,2]
[353012980,1739485937214,-1501.09,0.00014849,2]
[353012981,1739485937223,-1669.58,0.00014849,2]
[353012982,1739485937233,-825.83,0.00014849,2]
[353012983,1739485937243,-1337.74,0.00014849,2]
[353012984,1739485937253,-500.0,0.00014849,2]
[353012985,1739485937263,-1371.86,0.00014849,2]
[353012986,1739485937274,-500.0,0.00014849,2]
[353012987,1739485937284,-1702.26,0.00014849,2]
[353012988,1739485937294,-500.0,0.00014849,2]
[353012989,1739485937304,-1754.49,0.00014849,2]
[353012990,1739485937314,-1078.61,0.00014849,2]
[353012991,1739485937324,-869.45,0.00014849,2]
[353012992,1739485937337,-1158.07,0.00014849,2]
[353012993,1739485937347,-500.0,0.00014849,2]
[353012994,1739485937357,-991.47,0.00014849,2]
[353012995,1739485937367,-1684.45,0.00014849,2]
[353012996,1739485937377,-526.8,0.00014849,2]
[353012997,1739485937386,-660.93,0.00014849,2]
[353012998,1739485937397,-1302.35,0.00014849,2]
[353012999,1739485937407,-854.62,0.00014849,2]
[353013000,1739485937416,-2012.26,0.00014849,2]
[353013001,1739485937427,-504.56,0.00014849,2]
[353013002,1739485937438,-763.9,0.00014849,2]
[353013003,1739485937448,-696.46,0.00014849,2]
[353013004,1739485937460,-835.17,0.00014849,2]
[353013005,1739485937471,-692.97,0.00014849,2]
[353013006,1739485937481,-566.32,0.00014849,2]
[353013007,1739485937492,-857.95,0.00014849,2]
[353013008,1739485937502,-2021.1,0.00014849,2]
[353013009,1739485937512,-702.16,0.00014849,2]
[353013010,1739485937522,-683.82,0.00014849,2]
[353013011,1739485937532,-1015.7,0.00014849,2]
[353013012,1739485937541,-713.38,0.00014849,2]
[353013013,1739485937551,-500.0,0.00014849,2]
[353013014,1739485937561,-1424.92,0.00014849,2]
[353013015,1739485937571,-500.0,0.00014849,2]
[353013016,1739485937581,-500.0,0.00014849,2]
[353013017,1739485937590,-811.86,0.00014849,2]
[353013018,1739485937600,-988.11,0.00014849,2]
[353013019,1739485937610,-1906.79,0.00014849,2]
[353013020,1739485937620,-1427.42,0.00014849,2]
[353013021,1739485937629,-524.63,0.00014849,2]
[353013022,1739485937639,-500.0,0.00014849,2]
[353013023,1739485937649,-881.54,0.00014849,2]
[353013024,1739485937659,-865.9,0.00014849,2]
[353013025,1739485937670,-1372.61,0.00014849,2]
[353013026,1739485937681,-758.33,0.00014849,2]
[353013027,1739485937691,-1840.97,0.00014849,2]
[353013028,1739485937701,-1636.34,0.00014849,2]
[353013029,1739485937712,-1035.24,0.00014849,2]
[353013030,1739485937722,-1782.82,0.00014849,2]
[353013031,1739485937732,-557.25,0.00014849,2]
[353013032,1739485937742,-687.87,0.00014849,2]
[353013033,1739485937752,-888.74,0.00014849,2]
[353013034,1739485937762,-500.0,0.00014849,2]
[353013035,1739485937771,-1131.23,0.00014849,2]
[353013036,1739485937781,-976.11,0.00014849,2]
[353013037,1739485937791,-548.09,0.00014849,2]
[353013038,1739485937800,-1065.2,0.00014849,2]
[353013039,1739485937810,-500.0,0.00014849,2]
[353013040,1739485937820,-1519.15,0.00014849,2]